[Event "Budapest One Week GM-A 03-2025"]
[Site "Budapest"]
[Date "2025.03.17"]
[Round "1.5"]
[White "Nagy, Gabor"]
[Black "Tahay, Alexis"]
[Result "1/2-1/2"]
[Annotator "TA"]
[ECO "A30"]
[WhiteElo "2466"]
[BlackElo "2397"]
[PlyCount "53"]
[EventDate "2025.03.17"]
[EventType "tourn"]
[EventCountry "HUN"]
[SourceTitle "playchess.com"]
[Source "ChessBase"]
[SourceQuality "1"]
[TimeControl "5400+30"]

{[%evp 9,53,2,2,2,0,1,5,-7,-13,-11,-12,-19,-25,-27,-30,-24,0,0,0,0,0,-2,37,-10,0,-7,0,0,0,0,0,0,0,0,0,0,0,0,0,0,0,0,0,0,7,-23]} 1. c4 {[%emt 0:00:29]} c5 {[%emt 0:00:15]} 2. Nf3 {[%emt 0:01:56]} Nc6 {[%emt 0:00:14]} 3. d4 {[%emt 0:00:23]} cxd4 {[%emt 0:00:06]} 4. Nxd4 {[%emt 0:00:11]} Nf6 {[%emt 0:00:11]} 5. g3 {[%emt 0:00:42]} e5 {[%emt 0:00:23]} 6. Nb5 {[%emt 0:00:40] A31: Symmetrical English: 2 Nf3 Nf6 3 d4.} Bb4+ {[%emt 0:01:33]} 7. Bd2 {[%emt 0:00:44]} a6 $1 {[%emt 0:00:23]} 8. Bxb4 {[%emt 0:03:17]} axb5 {[%emt 0:00:29]} 9. Bd6 {[%emt 0:00:10]} Qa5+ {[%emt 0:00:31]} (9... bxc4 10. Bg2) 10. Nd2 {[%emt 0:06:40]} Ne4 $1 {[%emt 0:01:36]} ({Much weaker is} 10... bxc4 $6 11. Bg2 $16) 11. c5 {[%emt 0:01:57]} Nxd6 {[%emt 0:01:12]} 12. cxd6 {[%emt 0:00:48]} Qb4 {[%emt 0:01:58][%csl LRb2,LRd6]} 13. Bg2 {[%emt 0:01:05]} Qxb2 {[%emt 0:02:53]} 14. Rb1 {[%emt 0:13:27] White sacrificed a pawn} Qd4 $146 {[%emt 0:04:24]} (14... Qxa2 15. Rxb5 O-O 16. O-O Ra5 17. Rxa5 Qxa5 18. Nc4 Qb4 19. Qd5 Re8 20. e3 b6 {0-1 Fressinet,L (2672)-Vachier Lagrave,M (2804) Wch Blitz Doha 2016 (3)}) 15. Rxb5 {[%emt 0:01:24]} Qxd6 {[%emt 0:09:09]} 16. Bd5 {[%emt 0:03:21]} (16. O-O $14) 16... O-O {[%emt 0:17:36] White should prevent ...Nd4. The position is equal.} 17. O-O {[%emt 0:02:50]} Qc7 {[%emt 0:09:00]} 18. Ne4 {[%emt 0:08:06]} Ra5 {[%emt 0:04:24]} 19. Rxa5 {[%emt 0:05:40]} Qxa5 {[%emt 0:00:22]} 20. Nd6 {[%emt 0:00:44] [#]} Nd4 {[%emt 0:04:02]} 21. Bxf7+ {[%emt 0:13:27]} Rxf7 {[%emt 0:01:26]} 22. Nxf7 {[%emt 0:00:08]} Kxf7 {[%emt 0:00:10]} 23. e3 {[%emt 0:00:06]} Nc6 {[%emt 0:01:53][%cal Oa5c5]} 24. Qh5+ {[%emt 0:00:39]} Kf8 {[%emt 0:06:13]} 25. f4 {[%emt 0:00:09]} e4 {[%emt 0:00:07]} 26. Qxh7 {[%emt 0:00:12] [#] And now Qh8+ would win.} Qxa2 {[%emt 0:03:08]} 27. Qxe4 {[%emt 0:05:00] Not much happened in this game.   Weighted Error Value: White=0.04 (flawless) /Black=0.04 (flawless)   Mistake:       	White=1     	---        Inaccurate:     	White=1     	Black=1      OK:         	White=10    	Black=11     Best:        	White=2     	Black=1      Strong:       	---       	Black=2} 1/2-1/2

[Event "Budapest One Week GM-A 03-2025"]
[Site "Budapest"]
[Date "2025.03.18"]
[Round "2.1"]
[White "Berczes, David"]
[Black "Tahay, Alexis"]
[Result "1/2-1/2"]
[Annotator "RC"]
[ECO "A46"]
[WhiteElo "2408"]
[BlackElo "2397"]
[PlyCount "166"]
[EventDate "2025.03.17"]
[EventType "tourn"]
[EventCountry "HUN"]
[SourceTitle "playchess.com"]
[Source "ChessBase"]
[SourceQuality "1"]
[TimeControl "5400+30"]

1. d4 {[%emt 0:17:04]} Nf6 {[%emt 0:02:57]} 2. Nf3 {[%emt 0:00:20]} e6 {[%emt 0:01:13]} 3. Bf4 {[%emt 0:01:05]} d5 {[%emt 0:03:24]} 4. e3 {[%emt 0:00:33]} Bd6 {[%emt 0:00:05]} 5. Bd3 {[%emt 0:03:36]} O-O {[%emt 0:01:25]} 6. O-O {[%emt 0:00:07]} Bxf4 {[%emt 0:02:58]} 7. exf4 {[%emt 0:00:06]} b6 {[%emt 0:00:05]} 8. Qe2 {[%emt 0:00:43]} c5 {[%emt 0:04:53]} 9. c3 {[%emt 0:00:22]} a5 {[%emt 0:00:11]} 10. Ne5 {[%emt 0:00:26]} Ba6 {[%emt 0:09:25]} 11. Rd1 {[%emt 0:01:45]} Nfd7 {[%emt 0:07:01]} 12. Na3 {[%emt 0:29:15]} Nxe5 {[%emt 0:15:53]} 13. dxe5 {[%emt 0:21:04]} Qd7 {[%emt 0:09:23]} 14. Nc4 {[%emt 0:13:15]} Qc7 {[%emt 0:18:18]} 15. Nd6 {[%emt 0:04:03]} f5 {[%emt 0:03:57]} 16. g4 {[%emt 0:02:38]} fxg4 {[%emt 0:06:48]} 17. Qxg4 {[%emt 0:00:06]} Qe7 {[%emt 0:02:01]} 18. f5 {[%emt 0:00:51]} Bxd3 {[%emt 0:01:40]} 19. Rxd3 {[%emt 0:01:38]} Nc6 {[%emt 0:01:48]} 20. f4 {[%emt 0:00:58]} Kh8 {[%emt 0:01:42]} 21. Rh3 {[%emt 0:00:33]} exf5 {[%emt 0:00:51]} 22. Qg6 {[%emt 0:00:05]} h6 {[%emt 0:00:06]} 23. Kh1 {[%emt 0:00:44]} Rad8 {[%emt 0:04:01]} 24. Nxf5 {[%emt 0:00:38]} Qf7 {[%emt 0:00:41]} 25. Qxf7 {[%emt 0:00:33]} Rxf7 {[%emt 0:00:01]} 26. Nxh6 {[%emt 0:00:14]} gxh6 {[%emt 0:00:58]} 27. Rxh6+ {[%emt 0:00:00]} Kg7 {[%emt 0:00:16]} 28. Rxc6 {[%emt 0:00:03]} Rxf4 {[%emt 0:00:06]} 29. Rxb6 {[%emt 0:01:23]} d4 {[%emt 0:00:48]} 30. cxd4 {[%emt 0:00:03]} cxd4 {[%emt 0:00:20]} 31. Rg1+ {[%emt 0:01:09]} Kf7 {[%emt 0:00:22]} 32. e6+ {[%emt 0:00:36]} Kf6 {[%emt 0:00:42]} 33. Rg6+ {[%emt 0:00:25]} Kf5 {[%emt 0:00:43]} 34. e7 {[%emt 0:00:33]} Re8 {[%emt 0:00:04]} 35. Rgf6+ {[%emt 0:00:33]} Kg4 {[%emt 0:01:36]} 36. Rfe6 {[%emt 0:00:32]} Kf5 {[%emt 0:00:54]} 37. Rbd6 {[%emt 0:00:28]} Re4 {[%emt 0:00:41]} 38. Rf6+ {[%emt 0:00:31]} Kg5 {[%emt 0:00:23]} 39. Rf7 {[%emt 0:00:30]} R8xe7 {[%emt 0:00:39]} 40. Rxe7 {[%emt 0:00:24]} Rxe7 {[%emt 0:00:01]} 41. Rxd4 {[%emt 0:00:08]} Re1+ {[%emt 0:00:15]} 42. Kg2 {[%emt 0:00:01]} Re2+ {[%emt 0:00:06]} 43. Kg3 {[%emt 0:00:06]} Rxb2 {[%emt 0:00:06]} 44. Rd5+ {[%emt 0:00:03]} Kg6 {[%emt 0:00:05]} 45. Rxa5 {[%emt 0:00:02]} Rd2 {[%emt 0:00:07]} 46. h4 {[%emt 0:02:15]} Kh6 {[%emt 0:00:12]} 47. h5 {[%emt 0:00:34]} Rc2 {[%emt 0:00:30]} 48. Kf3 {[%emt 0:00:39]} Rd2 {[%emt 0:00:14]} 49. Ke3 {[%emt 0:00:03]} Rc2 {[%emt 0:00:09]} 50. Kd3 {[%emt 0:00:14]} Rf2 {[%emt 0:01:18]} 51. a4 {[%emt 0:00:17]} Rf4 {[%emt 0:00:01]} 52. Kc3 {[%emt 0:00:34]} Rf3+ {[%emt 0:01:08]} 53. Kd4 {[%emt 0:01:08]} Rf4+ {[%emt 0:00:06]} 54. Ke5 {[%emt 0:00:53]} Rc4 {[%emt 0:00:07]} 55. Kd5 {[%emt 0:00:31]} Rf4 {[%emt 0:00:10]} 56. Ke5 {[%emt 0:00:37]} Rc4 {[%emt 0:00:02]} 57. Kd6 {[%emt 0:00:29]} Rf4 {[%emt 0:00:39]} 58. Ra8 {[%emt 0:00:32]} Kh7 {[%emt 0:01:00]} 59. a5 {[%emt 0:00:20]} Rf5 {[%emt 0:00:02]} 60. h6 {[%emt 0:00:38]} Rb5 {[%emt 0:02:25]} 61. a6 {[%emt 0:00:30]} Rb6+ {[%emt 0:00:05]} 62. Kc5 {[%emt 0:00:32]} Rf6 {[%emt 0:00:05]} 63. Kb4 {[%emt 0:00:30]} Rf4+ {[%emt 0:00:09]} 64. Kb5 {[%emt 0:00:19]} Rf5+ {[%emt 0:00:04]} 65. Kb6 {[%emt 0:00:38]} Rf6+ {[%emt 0:00:06]} 66. Kc7 {[%emt 0:00:32]} Rf7+ {[%emt 0:00:15]} 67. Kd6 {[%emt 0:00:19]} Rf6+ {[%emt 0:00:08]} 68. Ke7 {[%emt 0:00:28]} Rc6 {[%emt 0:00:54]} 69. Ke8 {[%emt 0:00:36]} Re6+ {[%emt 0:00:31]} 70. Kd7 {[%emt 0:00:38]} Rf6 {[%emt 0:00:13]} 71. Ke8 {[%emt 0:00:28]} Re6+ {[%emt 0:00:06]} 72. Kd8 {[%emt 0:00:11]} Rf6 {[%emt 0:00:33]} 73. Kd7 {[%emt 0:00:45]} Rb6 {[%emt 0:00:39]} 74. Kc7 {[%emt 0:00:16]} Rf6 {[%emt 0:00:10]} 75. a7 {[%emt 0:00:20]} Rf7+ {[%emt 0:00:05]} 76. Kb6 {[%emt 0:01:00]} Rf6+ {[%emt 0:00:02]} 77. Kb5 {[%emt 0:00:29]} Rf5+ {[%emt 0:00:02]} 78. Kc6 {[%emt 0:00:30]} Rf6+ {[%emt 0:00:06]} 79. Kd7 {[%emt 0:00:30]} Ra6 {[%emt 0:00:07]} 80. Kc7 {[%emt 0:00:09]} Ra1 {[%emt 0:00:04]} 81. Rb8 {[%emt 0:00:31]} Rxa7+ {[%emt 0:00:06]} 82. Rb7 {[%emt 0:00:03]} Rxb7+ {[%emt 0:00:04]} 83. Kxb7 {[%emt 0:00:03]} Kxh6 1/2-1/2

[Event "Budapest One Week GM-A 03-2025"]
[Site "Budapest"]
[Date "2025.03.18"]
[Round "2.2"]
[White "Kienboeck, Benjamin"]
[Black "Nagy, Gabor"]
[Result "0-1"]
[Annotator "RC"]
[ECO "C78"]
[WhiteElo "2283"]
[BlackElo "2466"]
[PlyCount "88"]
[EventDate "2025.03.17"]
[EventType "tourn"]
[EventCountry "HUN"]
[SourceTitle "playchess.com"]
[Source "ChessBase"]
[SourceQuality "1"]
[TimeControl "5400+30"]

1. e4 {[%emt 0:00:09]} e5 {[%emt 0:01:36]} 2. Nf3 {[%emt 0:00:18]} Nc6 {[%emt 0:00:40]} 3. Bb5 {[%emt 0:00:38]} a6 {[%emt 0:02:59]} 4. Ba4 {[%emt 0:00:16]} b5 {[%emt 0:02:08]} 5. Bb3 {[%emt 0:00:10]} Bb7 {[%emt 0:00:48]} 6. O-O {[%emt 0:02:27]} Nf6 {[%emt 0:00:51]} 7. d4 {[%emt 0:05:02]} Nxd4 {[%emt 0:00:52]} 8. Bxf7+ {[%emt 0:09:16]} Kxf7 {[%emt 0:01:04]} 9. Nxe5+ {[%emt 0:00:16]} Kg8 {[%emt 0:02:12]} 10. Qxd4 {[%emt 0:00:24]} c5 {[%emt 0:02:39]} 11. Qd1 {[%emt 0:01:47]} Qe8 {[%emt 0:02:44]} 12. Nf3 {[%emt 0:11:34]} Qxe4 {[%emt 0:00:14]} 13. Bg5 {[%emt 0:05:53]} Qf5 {[%emt 0:09:44]} 14. Bxf6 {[%emt 0:09:17]} Qxf6 {[%emt 0:04:32]} 15. Qxd7 {[%emt 0:14:28]} Bxf3 {[%emt 0:00:14]} 16. gxf3 {[%emt 0:00:10]} Rd8 {[%emt 0:00:14]} 17. Qh3 {[%emt 0:06:24]} b4 {[%emt 0:00:08]} 18. f4 {[%emt 0:08:57]} h5 {[%emt 0:04:25]} 19. Qb3+ {[%emt 0:05:28]} Kh7 {[%emt 0:00:09]} 20. a3 {[%emt 0:00:49]} Qxf4 {[%emt 0:02:56]} 21. axb4 {[%emt 0:05:54]} Rd6 {[%emt 0:01:53]} 22. Qh3 {[%emt 0:08:00]} cxb4 {[%emt 0:00:45]} 23. Ra5 {[%emt 0:01:19]} g6 {[%emt 0:01:06]} 24. Qe3 {[%emt 0:01:57]} Qg4+ {[%emt 0:01:43]} 25. Kh1 {[%emt 0:00:55]} Rd1 {[%emt 0:02:39]} 26. Nd2 {[%emt 0:00:13]} Bh6 {[%emt 0:00:14]} 27. Qe7+ {[%emt 0:00:47]} Bg7 {[%emt 0:00:05]} 28. Qe3 {[%emt 0:01:07]} Rd8 {[%emt 0:01:42]} 29. h3 {[%emt 0:00:23]} Rxf1+ {[%emt 0:01:39]} 30. Nxf1 {[%emt 0:00:04]} Qc4 {[%emt 0:00:35]} 31. Kg2 {[%emt 0:00:42]} Rf8 {[%emt 0:02:31]} 32. Rc5 {[%emt 0:00:36]} Qf7 {[%emt 0:00:53]} 33. Ng3 {[%emt 0:00:31]} Bxb2 {[%emt 0:02:03]} 34. Ne4 {[%emt 0:00:20]} Kg8 {[%emt 0:01:06]} 35. Qg3 {[%emt 0:00:34]} Bg7 {[%emt 0:04:27]} 36. Ng5 {[%emt 0:00:45]} Qxf2+ {[%emt 0:00:21]} 37. Qxf2 {[%emt 0:00:13]} Rxf2+ {[%emt 0:00:02]} 38. Kg3 {[%emt 0:00:50]} Rf8 {[%emt 0:07:43]} 39. Rc6 {[%emt 0:00:14]} Be5+ {[%emt 0:01:39]} 40. Kg2 {[%emt 0:00:19]} Rf6 {[%emt 0:00:16]} 41. Rc4 {[%emt 0:00:41]} a5 {[%emt 0:00:48]} 42. Rc5 {[%emt 0:00:26]} Rf2+ {[%emt 0:00:15]} 43. Kg1 {[%emt 0:00:32]} Bd4 {[%emt 0:01:16]} 44. Rd5 {[%emt 0:00:44]} Rf5+ {[%emt 0:00:14]} 0-1

[Event "Budapest One Week GM-A 03-2025"]
[Site "Budapest"]
[Date "2025.03.18"]
[Round "2.3"]
[White "Uskov, Artem"]
[Black "Mirzoev, Azer"]
[Result "1-0"]
[Annotator "RC"]
[ECO "A06"]
[WhiteElo "2461"]
[BlackElo "2470"]
[PlyCount "119"]
[EventDate "2025.03.17"]
[EventType "tourn"]
[EventCountry "HUN"]
[SourceTitle "playchess.com"]
[Source "ChessBase"]
[SourceQuality "1"]
[TimeControl "5400+30"]

1. Nf3 {[%emt 0:12:01]} d5 {[%emt 0:00:14]} 2. g3 {[%emt 0:00:06]} Nf6 {[%emt 0:01:14]} 3. Bg2 {[%emt 0:00:07]} c6 {[%emt 0:00:14]} 4. O-O {[%emt 0:00:15]} Bf5 {[%emt 0:00:12]} 5. c4 {[%emt 0:00:26]} e6 {[%emt 0:00:07]} 6. Qb3 {[%emt 0:00:32]} Qb6 {[%emt 0:00:10]} 7. d3 {[%emt 0:00:07]} Nbd7 {[%emt 0:00:12]} 8. cxd5 {[%emt 0:01:52]} cxd5 {[%emt 0:02:06]} 9. Qxb6 {[%emt 0:00:42]} Nxb6 {[%emt 0:00:23]} 10. Nc3 {[%emt 0:05:55]} Bc5 {[%emt 0:03:59]} 11. Bf4 {[%emt 0:07:25]} a6 {[%emt 0:10:58]} 12. Rfc1 {[%emt 0:06:43]} Rc8 {[%emt 0:00:07]} 13. a4 {[%emt 0:06:55]} O-O {[%emt 0:10:22]} 14. a5 {[%emt 0:01:52]} Nbd7 {[%emt 0:00:07]} 15. Na4 {[%emt 0:01:00]} Bb4 {[%emt 0:03:34]} 16. Bd2 {[%emt 0:00:18]} Bd6 {[%emt 0:00:18]} 17. h3 {[%emt 0:03:54]} h6 {[%emt 0:01:03]} 18. Nd4 {[%emt 0:02:27]} Bg6 {[%emt 0:00:52]} 19. Nb3 {[%emt 0:05:22]} Rfd8 {[%emt 0:06:37]} 20. Be3 {[%emt 0:03:35]} Kf8 {[%emt 0:01:32]} 21. Kf1 {[%emt 0:03:19]} Ke7 {[%emt 0:01:15]} 22. Ke1 {[%emt 0:00:08]} Ne8 {[%emt 0:00:49]} 23. Kd1 {[%emt 0:02:30]} Rxc1+ {[%emt 0:01:59]} 24. Rxc1 {[%emt 0:00:06]} Rb8 {[%emt 0:04:59]} 25. Nbc5 {[%emt 0:11:14]} Nxc5 {[%emt 0:01:18]} 26. Nxc5 {[%emt 0:00:27]} Nc7 {[%emt 0:02:49]} 27. Na4 {[%emt 0:00:56]} f6 {[%emt 0:07:10]} 28. Ba7 {[%emt 0:01:49]} Ra8 {[%emt 0:00:39]} 29. Bb6 {[%emt 0:00:20]} Nb5 {[%emt 0:01:17]} 30. Nc5 {[%emt 0:00:05]} Rb8 {[%emt 0:01:00]} 31. e3 {[%emt 0:05:08]} h5 {[%emt 0:23:46]} 32. Kd2 {[%emt 0:01:55]} Nc7 {[%emt 0:05:01]} 33. Bf1 {[%emt 0:01:40]} Be8 {[%emt 0:01:40]} 34. d4 {[%emt 0:01:46]} Bb5 {[%emt 0:02:07]} 35. Bd3 {[%emt 0:07:03]} Bxd3 {[%emt 0:00:22]} 36. Kxd3 {[%emt 0:00:52]} Nb5 {[%emt 0:00:06]} 37. Rg1 {[%emt 0:00:20]} Bc7 {[%emt 0:01:03]} 38. Bxc7 {[%emt 0:03:52]} Nxc7 {[%emt 0:00:03]} 39. Rc1 {[%emt 0:00:06]} Nb5 {[%emt 0:00:16]} 40. b3 {[%emt 0:01:06]} Rc8 {[%emt 0:01:29]} 41. Rc2 {[%emt 0:00:06]} Nd6 {[%emt 0:01:00]} 42. f3 {[%emt 0:01:09]} e5 {[%emt 0:00:30]} 43. dxe5 {[%emt 0:02:09]} fxe5 {[%emt 0:00:04]} 44. e4 {[%emt 0:00:02]} dxe4+ {[%emt 0:00:55]} 45. fxe4 {[%emt 0:00:02]} g6 {[%emt 0:00:36]} 46. b4 {[%emt 0:00:45]} Rd8 {[%emt 0:00:12]} 47. Ke3 {[%emt 0:00:23]} Rc8 {[%emt 0:00:05]} 48. Kd3 {[%emt 0:00:02]} Rd8 {[%emt 0:00:04]} 49. Ke2 {[%emt 0:00:43]} Rc8 {[%emt 0:00:04]} 50. Rd2 {[%emt 0:00:06]} Rc7 {[%emt 0:03:44]} 51. Rd5 {[%emt 0:00:21]} Nf7 {[%emt 0:00:27]} 52. h4 {[%emt 0:00:32]} Kf6 {[%emt 0:00:28]} 53. Kd3 {[%emt 0:00:04]} Re7 {[%emt 0:04:05]} 54. Kc4 {[%emt 0:00:20]} g5 {[%emt 0:00:05]} 55. b5 {[%emt 0:00:13]} gxh4 {[%emt 0:00:34]} 56. gxh4 {[%emt 0:00:02]} axb5+ {[%emt 0:01:33]} 57. Kxb5 {[%emt 0:00:02]} Nh8 {[%emt 0:00:04]} 58. Rd6+ {[%emt 0:01:43]} Kf7 {[%emt 0:00:37]} 59. Rb6 {[%emt 0:00:09]} Ng6 {[%emt 0:00:49]} 60. Rxb7 {[%emt 0:00:04]} 1-0

[Event "Budapest One Week GM-A 03-2025"]
[Site "Budapest"]
[Date "2025.03.18"]
[Round "2.4"]
[White "Sandoval Mercado, Carlos"]
[Black "Kairbekova, Amina"]
[Result "1-0"]
[Annotator "RC"]
[ECO "A48"]
[WhiteElo "2383"]
[BlackElo "2336"]
[PlyCount "131"]
[EventDate "2025.03.17"]
[EventType "tourn"]
[EventCountry "HUN"]
[SourceTitle "playchess.com"]
[Source "ChessBase"]
[SourceQuality "1"]
[TimeControl "5400+30"]

1. d4 {[%emt 0:00:47]} Nf6 {[%emt 0:00:05]} 2. Nf3 {[%emt 0:00:30]} g6 {[%emt 0:00:06]} 3. Bf4 {[%emt 0:01:21]} Bg7 {[%emt 0:00:22]} 4. e3 {[%emt 0:00:06]} O-O {[%emt 0:00:16]} 5. Be2 {[%emt 0:01:23]} d6 {[%emt 0:00:23]} 6. h3 {[%emt 0:00:07]} Nc6 {[%emt 0:01:21]} 7. Nc3 {[%emt 0:02:48]} Qe8 {[%emt 0:00:37]} 8. O-O {[%emt 0:04:05]} e5 {[%emt 0:00:14]} 9. Bg3 {[%emt 0:00:33]} exd4 {[%emt 0:10:35]} 10. exd4 {[%emt 0:07:55]} Ne4 {[%emt 0:00:32]} 11. Nxe4 {[%emt 0:08:50]} Qxe4 {[%emt 0:00:05]} 12. c3 {[%emt 0:01:23]} Bf5 {[%emt 0:08:23]} 13. Nh4 {[%emt 0:01:36]} Bd7 {[%emt 0:00:46]} 14. b4 {[%emt 0:07:47]} Qe8 {[%emt 0:04:51]} 15. Qd2 {[%emt 0:02:56]} Ne7 {[%emt 0:04:19]} 16. Rfe1 {[%emt 0:03:09]} Qd8 {[%emt 0:00:45]} 17. Bd3 {[%emt 0:01:18]} b5 {[%emt 0:05:01]} 18. a4 {[%emt 0:05:08]} bxa4 {[%emt 0:03:47]} 19. b5 {[%emt 0:01:35]} Rb8 {[%emt 0:02:05]} 20. Rxa4 {[%emt 0:01:43]} Nc8 {[%emt 0:00:05]} 21. Rb4 {[%emt 0:03:50]} Re8 {[%emt 0:02:35]} 22. Rc1 {[%emt 0:00:54]} d5 {[%emt 0:08:08]} 23. Qa2 {[%emt 0:09:02]} Bf8 {[%emt 0:06:26]} 24. Rbb1 {[%emt 0:00:24]} Bd6 {[%emt 0:01:09]} 25. Qxd5 {[%emt 0:04:08]} Bxg3 {[%emt 0:00:46]} 26. fxg3 {[%emt 0:00:04]} Re3 {[%emt 0:00:14]} 27. Bf1 {[%emt 0:02:17]} Nd6 {[%emt 0:06:42]} 28. Nf3 {[%emt 0:07:30]} Qf6 {[%emt 0:07:40]} 29. g4 {[%emt 0:11:26]} Qf4 {[%emt 0:03:50]} 30. Re1 {[%emt 0:09:30]} Rbe8 {[%emt 0:05:44]} 31. Ne5 {[%emt 0:01:08]} Ne4 {[%emt 0:08:29]} 32. Rxe3 {[%emt 0:00:38]} Qxe3+ {[%emt 0:00:06]} 33. Kh1 {[%emt 0:00:18]} Be6 {[%emt 0:02:02]} 34. Qc6 {[%emt 0:00:01]} Rd8 {[%emt 0:00:23]} 35. Bc4 {[%emt 0:00:41]} Bxc4 {[%emt 0:05:33]} 36. Qxc4 {[%emt 0:00:12]} Rf8 {[%emt 0:00:05]} 37. Nf3 {[%emt 0:01:07]} Nf2+ {[%emt 0:02:10]} 38. Kh2 {[%emt 0:00:03]} Qf4+ {[%emt 0:00:14]} 39. Kg1 {[%emt 0:00:04]} Nxh3+ {[%emt 0:00:17]} 40. Kf1 {[%emt 0:00:52]} Re8 {[%emt 0:00:57]} 41. Re1 {[%emt 0:01:13]} Rxe1+ {[%emt 0:01:14]} 42. Kxe1 {[%emt 0:00:01]} Qc1+ {[%emt 0:00:27]} 43. Ke2 {[%emt 0:00:15]} Qc2+ {[%emt 0:00:48]} 44. Nd2 {[%emt 0:01:16]} Nf4+ {[%emt 0:00:21]} 45. Ke3 {[%emt 0:00:02]} Nxg2+ {[%emt 0:00:06]} 46. Ke2 {[%emt 0:00:02]} Qc1 {[%emt 0:01:33]} 47. Qxc7 {[%emt 0:00:31]} Qe1+ {[%emt 0:00:19]} 48. Kd3 {[%emt 0:00:02]} Qe3+ {[%emt 0:00:05]} 49. Kc2 {[%emt 0:00:13]} Ne1+ {[%emt 0:00:45]} 50. Kd1 {[%emt 0:00:01]} Nd3 {[%emt 0:00:06]} 51. Kc2 {[%emt 0:02:39]} Nf2 {[%emt 0:00:51]} 52. Qc6 {[%emt 0:00:33]} Qe2 {[%emt 0:00:54]} 53. Qf3 {[%emt 0:00:22]} Qxf3 {[%emt 0:00:44]} 54. Nxf3 {[%emt 0:00:01]} Nxg4 {[%emt 0:00:06]} 55. c4 {[%emt 0:00:02]} Kf8 {[%emt 0:00:04]} 56. c5 {[%emt 0:01:10]} Ke7 {[%emt 0:00:05]} 57. Kd3 {[%emt 0:00:31]} f6 {[%emt 0:01:17]} 58. Ke4 {[%emt 0:00:51]} Kd7 {[%emt 0:00:05]} 59. d5 {[%emt 0:00:31]} Nf2+ {[%emt 0:00:39]} 60. Kd4 {[%emt 0:00:26]} g5 {[%emt 0:00:15]} 61. c6+ {[%emt 0:00:28]} Kc7 {[%emt 0:00:22]} 62. Nd2 {[%emt 0:00:34]} g4 {[%emt 0:00:33]} 63. Nc4 {[%emt 0:00:04]} g3 {[%emt 0:00:19]} 64. d6+ {[%emt 0:00:03]} Kb8 65. b6 {[%emt 0:00:42]} axb6 {[%emt 0:01:27]} 66. c7+ {[%emt 0:00:32]} 1-0

[Event "Budapest One Week GM-A 03-2025"]
[Site "Budapest"]
[Date "2025.03.18"]
[Round "2.5"]
[White "Lu, Maximillian"]
[Black "Jake Shanty"]
[Result "1-0"]
[Annotator "RC"]
[ECO "A37"]
[WhiteElo "2392"]
[BlackElo "2336"]
[PlyCount "99"]
[EventDate "2025.03.17"]
[EventType "tourn"]
[EventCountry "HUN"]
[SourceTitle "playchess.com"]
[Source "ChessBase"]
[SourceQuality "1"]
[TimeControl "5400+30"]

1. Nf3 {[%emt 0:00:02]} c5 {[%emt 0:01:27]} 2. g3 {[%emt 0:01:04]} Nc6 {[%emt 0:01:14]} 3. Bg2 {[%emt 0:01:48]} g6 {[%emt 0:06:56]} 4. c4 {[%emt 0:01:15]} Bg7 {[%emt 0:01:44]} 5. Nc3 {[%emt 0:01:40]} e6 {[%emt 0:07:34]} 6. d3 {[%emt 0:03:48]} Nge7 {[%emt 0:03:18]} 7. h4 {[%emt 0:01:07]} h6 {[%emt 0:14:18]} 8. Bd2 {[%emt 0:07:57]} d5 {[%emt 0:06:02]} 9. Rb1 {[%emt 0:08:11]} b6 {[%emt 0:05:48]} 10. a3 {[%emt 0:05:38]} dxc4 {[%emt 0:10:51]} 11. dxc4 {[%emt 0:00:25]} Bb7 {[%emt 0:00:07]} 12. O-O {[%emt 0:03:31]} Nf5 {[%emt 0:07:27]} 13. b4 {[%emt 0:17:42]} cxb4 {[%emt 0:03:37]} 14. axb4 {[%emt 0:00:03]} O-O {[%emt 0:00:36]} 15. Qc1 {[%emt 0:06:18]} h5 {[%emt 0:17:06]} 16. c5 {[%emt 0:09:40]} bxc5 {[%emt 0:04:36]} 17. bxc5 {[%emt 0:00:02]} Qc8 {[%emt 0:00:18]} 18. Bf4 {[%emt 0:09:43]} Rd8 {[%emt 0:02:21]} 19. Ne5 {[%emt 0:02:54]} Na5 {[%emt 0:04:00]} 20. Ne4 {[%emt 0:07:33]} Nd4 {[%emt 0:00:32]} 21. Re1 {[%emt 0:00:42]} Nab3 {[%emt 0:00:31]} 22. Qe3 {[%emt 0:03:05]} Bd5 {[%emt 0:00:31]} 23. Nd6 {[%emt 0:06:24]} Rxd6 {[%emt 0:00:27]} 24. cxd6 {[%emt 0:00:01]} Nc2 {[%emt 0:00:10]} 25. d7 {[%emt 0:01:49]} Qd8 {[%emt 0:00:34]} 26. Bxd5 {[%emt 0:00:31]} Nxe3 {[%emt 0:00:10]} 27. Bxa8 {[%emt 0:00:01]} Bxe5 {[%emt 0:00:31]} 28. Bxe5 {[%emt 0:01:01]} Nc4 {[%emt 0:00:20]} 29. Rxb3 {[%emt 0:00:26]} Nxe5 {[%emt 0:00:11]} 30. Rd1 {[%emt 0:00:02]} Nxd7 {[%emt 0:01:22]} 31. Bc6 {[%emt 0:00:08]} Qc7 {[%emt 0:00:11]} 32. Bxd7 {[%emt 0:00:06]} Qc2 {[%emt 0:00:04]} 33. Rbd3 {[%emt 0:01:37]} Qxe2 {[%emt 0:00:03]} 34. Bc6 {[%emt 0:00:14]} a5 {[%emt 0:00:24]} 35. Rd8+ {[%emt 0:00:48]} Kg7 {[%emt 0:00:05]} 36. R1d7 {[%emt 0:00:28]} g5 {[%emt 0:02:29]} 37. hxg5 {[%emt 0:00:33]} a4 {[%emt 0:00:26]} 38. Ra7 {[%emt 0:00:37]} h4 {[%emt 0:00:30]} 39. gxh4 {[%emt 0:00:30]} Qc4 {[%emt 0:00:23]} 40. Bg2 {[%emt 0:00:30]} Qc1+ {[%emt 0:00:34]} 41. Bf1 {[%emt 0:00:12]} Qf4 {[%emt 0:00:23]} 42. Rdd7 {[%emt 0:00:23]} Kg6 {[%emt 0:00:41]} 43. Rxf7 {[%emt 0:00:45]} Qxh4 {[%emt 0:00:20]} 44. Rg7+ {[%emt 0:00:09]} Kf5 {[%emt 0:00:05]} 45. Ra5+ {[%emt 0:00:50]} e5 {[%emt 0:00:12]} 46. Bd3+ {[%emt 0:00:11]} Ke6 {[%emt 0:00:22]} 47. Rg6+ {[%emt 0:00:50]} Ke7 {[%emt 0:00:24]} 48. Ra7+ {[%emt 0:00:07]} Kf8 {[%emt 0:00:05]} 49. Rf6+ {[%emt 0:00:08]} Kg8 {[%emt 0:00:05]} 50. Bh7+ {[%emt 0:00:06]} 1-0

[Event "Budapest One Week GM-A 03-2025"]
[Site "Budapest"]
[Date "2025.03.18"]
[Round "3.4"]
[White "Nagy, Gabor"]
[Black "Uskov, Artem"]
[Result "1/2-1/2"]
[Annotator "RC"]
[ECO "D45"]
[WhiteElo "2466"]
[BlackElo "2461"]
[PlyCount "21"]
[EventDate "2025.03.17"]
[EventType "tourn"]
[EventCountry "HUN"]
[SourceTitle "playchess.com"]
[Source "ChessBase"]
[SourceQuality "1"]
[TimeControl "5400+30"]

1. d4 {[%emt 0:00:05]} Nf6 {[%emt 0:17:17]} 2. c4 {[%emt 0:00:14]} e6 {[%emt 0:00:03]} 3. Nf3 {[%emt 0:00:15]} d5 {[%emt 0:00:05]} 4. Nc3 {[%emt 0:00:17]} c6 {[%emt 0:00:03]} 5. e3 {[%emt 0:00:22]} Nbd7 {[%emt 0:00:05]} 6. Qc2 {[%emt 0:00:14]} Bd6 {[%emt 0:00:05]} 7. Bd3 {[%emt 0:00:12]} O-O {[%emt 0:00:06]} 8. O-O {[%emt 0:00:11]} dxc4 {[%emt 0:00:04]} 9. Bxc4 {[%emt 0:00:12]} a6 {[%emt 0:00:02]} 10. a4 {[%emt 0:00:18]} h6 {[%emt 0:09:56]} 11. Rd1 {[%emt 0:00:24]} 1/2-1/2